fUSD/lending_fUSD_20260305
["ID","MTS","AMOUNT","RATE_DAILY","PERIOD"]
[407704873,1772694435140,500.0,0.00014373,2]
[407704874,1772694435187,504.97753483,0.00014921,2]
[407704875,1772694440081,275.0,0.00013,2]
[407704876,1772694440512,700.0,0.00013,2]
[407704877,1772694452734,882.405446,0.00017581,2]
[407704878,1772694473630,503.0,0.00014999,2]
[407704879,1772694481254,300.0,0.00017999,2]
[407704880,1772694497115,267.77119421,0.00017043,2]
[407704881,1772694511901,1200.0,0.00017999,2]
[407704882,1772694519936,264.73530605,0.000179,2]
[407704883,1772694541351,160.0,0.00017999,2]
[407704884,1772694542385,550.0,0.00017999,2]
[407704885,1772694544924,300.0,0.00017999,2]
[407704886,1772694601394,300.0,0.00017999,2]
[407704887,1772694601429,1200.0,0.00017999,2]
[407704888,1772694601746,300.0,0.00017999,2]
[407704889,1772694605705,-1023.46758783,0.00018,2]
[407704890,1772694605775,-10000.01,0.00018,2]
[407704891,1772694605804,-10000.01,0.00018,2]
[407704892,1772694606036,-2836.453094,0.00018,2]
[407704893,1772694606070,-308.58119716,0.00018,2]
[407704894,1772694606100,-1002.27869915,0.00018,2]
[407704895,1772694606170,-2412.11911853,0.00018015,2]
[407704896,1772694606200,-250.0,0.00018015,2]
[407704897,1772694606231,-300.0,0.0001803,2]
[407704898,1772694606263,-161.35,0.0001806,2]
[407704899,1772694606310,-252.324992,0.00018125,7]
[407704900,1772694606341,-161.35,0.00018329,2]
[407704901,1772694606370,-200.0,0.00018356,2]
[407704902,1772694606411,-1041.54,0.00018581,2]
[407704903,1772694606441,-161.35,0.000186,2]
[407704904,1772694606639,-1000.0,0.00018765,2]
[407704905,1772694606669,-871.35275769,0.00018792,2]
[407704906,1772694607054,-1000.0,0.00018802,2]
[407704907,1772694607069,-871.35275769,0.00018802,2]
[407704908,1772694607084,-6257.30448462,0.00018802,2]
[407704909,1772694607149,-10000.01,0.00018802,2]
[407704910,1772694607907,-10000.01,0.00018802,2]
[407704911,1772694608038,-1625.62312579,0.00018802,2]
[407704912,1772694608067,-1700.0000001,0.00018802,2]
[407704913,1772694608096,-161.35,0.00018869,2]
[407704914,1772694608164,-3026.06374822,0.00018888,2]
[407704915,1772694608217,-10000.01,0.00018888,2]
[407704916,1772694608303,-10000.01,0.00018888,2]
[407704917,1772694611016,-10000.01,0.00018888,2]
[407704918,1772694611129,-10000.01,0.00018888,2]
[407704919,1772694611278,-10000.01,0.00018888,2]
[407704920,1772694611385,-10000.01,0.00018888,2]
[407704921,1772694611536,-2076.93435102,0.00018888,2]
[407704922,1772694611561,-5846.14129796,0.00018888,2]
[407704923,1772694613755,1427.9018997,0.00018406,2]
[407704930,1772694632311,-299.23478,0.00019,2]
[407704931,1772694632322,-743.4792702,0.00019,2]
[407704932,1772694632332,-2622.89306983,0.00019,2]
[407704933,1772694632344,-1523.60447212,0.00019,2]
[407704934,1772694632353,-1006.98,0.0001901,2]
[407704935,1772694632363,-935.0,0.00019079,2]
[407704936,1772694632371,-161.34,0.0001914,2]
[407704937,1772694632380,-168.0,0.00019483,2]
[407704938,1772694632390,-27.57358761,0.00019548,3]
[407704939,1772694632400,-462.53641239,0.00019548,3]
[407704940,1772694632410,-47.46358761,0.00019558,2]
[407704941,1772694632435,-1304.53641239,0.00019558,2]
[407704942,1772694632446,-1767.0,0.00019597,2]
[407704943,1772694632456,-171.277,0.000196,2]
[407704944,1772694632466,-2420.897,0.000196,2]
[407704945,1772694632475,-362.0,0.00019636,2]
[407704946,1772694632485,-310.0,0.00019639,2]
[407704947,1772694632497,-1000.0,0.0001973,2]
[407704948,1772694632507,-1680.0,0.00019735,2]
[407704949,1772694632518,-309.0,0.00019765,2]
[407704950,1772694632530,-387.48798187,0.000198,2]
[407704951,1772694632541,-187.71828532,0.000198,2]
[407704952,1772694632551,-300.0,0.000198,2]
[407704953,1772694632563,-300.0,0.000198,2]
[407704954,1772694632576,-500.0,0.000198,2]
[407704955,1772694632586,-5000.0,0.000198,2]
[407704956,1772694632598,-193.0,0.000198,2]
[407704957,1772694632611,-250.0,0.000198,2]
[407704958,1772694632622,-2500.0,0.000198,2]
[407704959,1772694632632,-152.08844068,0.000199,5]
[407704960,1772694632643,-5248.47370969,0.000199,2]
[407704961,1772694632652,-20692.88985888,0.000199,2]
[407704962,1772694632661,-975.30830755,0.000199,2]
[407704963,1772694632670,-238.48776008,0.000199,2]
[407704964,1772694632820,-428.51371256,0.000199,2]
[407704965,1772694632830,-500.0,0.000199,5]
[407704966,1772694632839,-2288.49423229,0.000199,2]
[407704967,1772694632848,-3664.0,0.00019973,2]
[407704968,1772694632858,-1526.72766708,0.0001999,2]
[407704970,1772694632867,-151.0,0.00019997,2]
[407704971,1772694632876,-394.11832102,0.00019999,2]
[407704973,1772694632885,-300.0,0.00019999,2]
[407704975,1772694632895,-500.0,0.00019999,2]
[407704977,1772694632904,-500.0,0.00019999,2]
[407704979,1772694632913,-500.0,0.00019999,2]
[407704980,1772694632922,-500.0,0.00019999,2]
[407704982,1772694632931,-500.0,0.00019999,2]
[407704984,1772694632941,-500.0,0.00019999,2]
[407704986,1772694632951,-500.0,0.00019999,2]
[407704987,1772694632960,-500.0,0.00019999,2]
[407704989,1772694632969,-500.0,0.00019999,2]
[407704991,1772694632978,-500.0,0.00019999,2]
[407704993,1772694632992,-500.0,0.00019999,2]
[407704995,1772694633001,-500.0,0.00019999,2]
[407704996,1772694633011,-500.0,0.00019999,2]
[407704998,1772694633020,-500.0,0.00019999,2]
[407705000,1772694633031,-500.0,0.00019999,2]
[407705002,1772694633045,-500.0,0.00019999,2]
[407705003,1772694633055,-500.0,0.00019999,2]
[407705005,1772694633065,-500.0,0.00019999,2]
[407705006,1772694633077,-500.0,0.00019999,2]
[407705007,1772694633086,-500.0,0.00019999,2]
[407705008,1772694633096,-500.0,0.00019999,2]
[407705009,1772694633105,-500.0,0.00019999,2]
[407705010,1772694633114,-500.0,0.00019999,2]
[407705011,1772694633124,-500.0,0.00019999,2]
[407705012,1772694633134,-500.0,0.00019999,2]
[407705013,1772694633143,-500.0,0.00019999,2]
[407705014,1772694633152,-500.0,0.00019999,2]
[407705015,1772694633161,-500.0,0.00019999,2]
[407705016,1772694633171,-500.0,0.00019999,2]
[407705017,1772694633179,-500.0,0.00019999,2]
[407705018,1772694633188,-500.0,0.00019999,2]
[407705019,1772694633198,-500.0,0.00019999,2]
[407705020,1772694633208,-500.0,0.00019999,2]
[407705021,1772694633218,-500.0,0.00019999,2]
[407705022,1772694633227,-500.0,0.00019999,2]
[407705023,1772694633237,-500.0,0.00019999,2]
[407705024,1772694633246,-500.0,0.00019999,2]
[407705025,1772694633257,-500.0,0.00019999,2]
[407705026,1772694633266,-500.0,0.00019999,2]
[407705027,1772694633277,-500.0,0.00019999,2]
[407705028,1772694633288,-500.0,0.00019999,2]
[407705029,1772694633302,-500.0,0.00019999,2]
[407705030,1772694633314,-500.0,0.00019999,2]
[407705031,1772694633326,-500.0,0.00019999,2]
[407705032,1772694633337,-500.0,0.00019999,2]
[407705033,1772694633349,-500.0,0.00019999,2]
[407705034,1772694633360,-500.0,0.00019999,2]
[407705035,1772694633372,-500.0,0.00019999,2]
[407705036,1772694633383,-500.0,0.00019999,2]
[407705037,1772694633392,-500.0,0.00019999,2]
[407705038,1772694633403,-500.0,0.00019999,2]
[407705039,1772694633416,-500.0,0.00019999,2]
[407705040,1772694633427,-500.0,0.00019999,2]
[407705041,1772694633439,-500.0,0.00019999,2]
[407705042,1772694633449,-500.0,0.00019999,2]
[407705043,1772694633458,-500.0,0.00019999,2]
[407705044,1772694633468,-500.0,0.00019999,2]
[407705045,1772694633478,-500.0,0.00019999,2]
[407705046,1772694633487,-500.0,0.00019999,2]
[407705047,1772694633498,-500.0,0.00019999,2]
[407705048,1772694633511,-500.0,0.00019999,2]
[407705049,1772694633523,-500.0,0.00019999,2]
[407705050,1772694633535,-500.0,0.00019999,2]
[407705051,1772694633549,-500.0,0.00019999,2]
[407705052,1772694633560,-300.0,0.00019999,2]
[407705053,1772694633570,-380.43299552,0.00019999,2]
[407705054,1772694633581,-500.0,0.00019999,2]
[407705055,1772694633591,-480.63319267,0.00019999,2]
[407705056,1772694633600,-500.0,0.00019999,2]
[407705057,1772694633610,-512.07684474,0.00019999,2]
[407705058,1772694633619,-500.0,0.00019999,2]
[407705059,1772694633631,-500.0,0.00019999,2]
[407705060,1772694633642,-500.0,0.00019999,2]
[407705061,1772694633653,-500.0,0.00019999,2]
[407705062,1772694633663,-500.0,0.00019999,2]
[407705063,1772694633674,-500.0,0.00019999,2]
[407705064,1772694633686,-500.0,0.00019999,2]
[407705065,1772694633698,-500.0,0.00019999,2]
[407705066,1772694633707,-430.34393939,0.00019999,2]
[407705067,1772694633716,-500.0,0.00019999,2]
[407705068,1772694633725,-500.0,0.00019999,2]
[407705069,1772694633739,-500.0,0.00019999,2]
[407705070,1772694633749,-500.0,0.00019999,2]
[407705071,1772694633761,-500.0,0.00019999,2]
[407705072,1772694633772,-500.0,0.00019999,2]
[407705073,1772694633784,-500.0,0.00019999,2]
[407705074,1772694633794,-500.0,0.00019999,2]
[407705075,1772694633805,-500.0,0.00019999,2]
[407705076,1772694633817,-500.0,0.00019999,2]
[407705077,1772694633828,-500.0,0.00019999,2]
[407705078,1772694633837,-500.0,0.00019999,2]
[407705079,1772694633846,-500.0,0.00019999,2]
[407705080,1772694633855,-272.97791603,0.00019999,2]
[407705081,1772694633864,-500.0,0.00019999,2]
[407705082,1772694633873,-500.0,0.00019999,2]
[407705083,1772694633885,-500.0,0.00019999,2]
[407705084,1772694633895,-500.0,0.00019999,2]
[407705085,1772694633905,-500.0,0.00019999,2]
[407705086,1772694633916,-500.0,0.00019999,2]
[407705087,1772694633927,-500.0,0.00019999,2]
[407705088,1772694633940,-500.0,0.00019999,2]
[407705089,1772694633954,-500.0,0.00019999,2]
[407705090,1772694633964,-500.0,0.00019999,2]
[407705091,1772694633977,-500.0,0.00019999,2]
[407705092,1772694633987,-500.0,0.00019999,2]
[407705093,1772694633997,-500.0,0.00019999,2]
[407705094,1772694634009,-500.0,0.00019999,2]
[407705095,1772694634021,-500.0,0.00019999,2]
[407705096,1772694634031,-500.0,0.00019999,2]
[407705097,1772694634040,-500.0,0.00019999,2]
[407705098,1772694634050,-500.0,0.00019999,2]
[407705099,1772694634060,-500.0,0.00019999,2]
[407705100,1772694634072,-500.0,0.00019999,2]
[407705101,1772694634081,-500.0,0.00019999,2]
[407705102,1772694634091,-500.0,0.00019999,2]
[407705103,1772694634100,-500.0,0.00019999,2]
[407705104,1772694634109,-500.0,0.00019999,2]
[407705105,1772694634120,-500.0,0.00019999,2]
[407705106,1772694634131,-500.0,0.00019999,2]
[407705107,1772694634141,-500.0,0.00019999,2]
[407705108,1772694634153,-500.0,0.00019999,2]
[407705109,1772694634169,-500.0,0.00019999,2]
[407705110,1772694634179,-500.0,0.00019999,2]
[407705111,1772694634190,-500.0,0.00019999,2]
[407705112,1772694634201,-500.0,0.00019999,2]
[407705113,1772694634211,-391.72401491,0.00019999,2]
[407705114,1772694634222,-266.53415357,0.00019999,2]
[407705115,1772694634233,-215.60523877,0.00019999,2]
[407705116,1772694634243,-171.67283443,0.00019999,2]
[407705117,1772694634256,-500.0,0.00019999,2]
[407705118,1772694634265,-500.0,0.00019999,2]
[407705119,1772694634275,-500.0,0.00019999,2]
[407705120,1772694634287,-500.0,0.00019999,2]
[407705121,1772694634298,-500.0,0.00019999,2]
[407705122,1772694634308,-500.0,0.00019999,2]
[407705123,1772694634319,-500.0,0.00019999,2]
[407705124,1772694634331,-500.0,0.00019999,2]
[407705125,1772694634340,-500.0,0.00019999,2]
[407705126,1772694634351,-588.9536848,0.00019999,2]
[407705127,1772694634360,-500.0,0.00019999,2]
[407705128,1772694634371,-615.86386139,0.00019999,2]
[407705129,1772694634381,-500.0,0.00019999,2]
[407705130,1772694634390,-500.0,0.00019999,2]
[407705131,1772694634399,-500.0,0.00019999,2]
[407705132,1772694634409,-500.0,0.00019999,2]
[407705133,1772694634419,-500.0,0.00019999,2]
[407705134,1772694634430,-500.0,0.00019999,2]
[407705135,1772694634441,-500.0,0.00019999,2]
[407705136,1772694634451,-500.0,0.00019999,2]
[407705137,1772694634461,-500.0,0.00019999,2]
[407705138,1772694634470,-500.0,0.00019999,2]
[407705139,1772694634481,-250.0,0.00019999,2]
[407705140,1772694634490,-500.0,0.00019999,2]
[407705141,1772694634500,-500.0,0.00019999,2]
[407705142,1772694634510,-500.0,0.00019999,2]
[407705143,1772694634521,-500.0,0.00019999,2]
[407705144,1772694634537,-2044075.73146971,0.0002,2]
[407705145,1772694634550,-25701.34339616,0.0002,2]
[407705146,1772694634561,-282855.57446744,0.0002,2]
[407705147,1772694634574,-3950.0,0.0002,2]
[407705148,1772694634586,-1299.62748082,0.0002,2]
[407705149,1772694634605,-151.0,0.0002,2]
[407705150,1772694634616,-151.0,0.0002,2]
[407705151,1772694634626,-1049.13127696,0.0002,2]
[407705152,1772694634635,-2874.90562682,0.0002,2]
[407705153,1772694634644,-152.0,0.0002,2]
[407705154,1772694634654,-194.0,0.0002,2]
[407705155,1772694634663,-200.0,0.0002,2]
[407705156,1772694634673,-200.0,0.0002,2]
[407705157,1772694634683,-880.69109706,0.0002,2]
[407705158,1772694634693,-814.86,0.0002,2]
[407705159,1772694634703,-487.0,0.0002,2]
[407705160,1772694634712,-487.0,0.0002,2]
[407705161,1772694634722,-487.0,0.0002,2]
[407705162,1772694634731,-728.61,0.0002,2]
[407705163,1772694634741,-15830.9062239,0.00020128,2]
[407705164,1772694634751,-500.0,0.00020174,5]
[407705165,1772694634761,-200.0,0.00020213,2]
[407705166,1772694634770,-728.0,0.00020227,2]
[407705167,1772694634779,-1589.0,0.00020231,2]
[407705168,1772694634789,-791.0,0.00020268,2]
[407705169,1772694634799,-3532.352641,0.00020405,2]
[407705170,1772694634808,-500.0,0.00020448,5]
[407705171,1772694634818,-500.0,0.00020722,5]
[407705172,1772694634828,-250.0,0.00020777,2]
[407705173,1772694634838,-300.26307298,0.00020777,2]
[407705174,1772694634847,-558.0,0.00020877,2]
[407705175,1772694634857,-300.0,0.000209,2]
[407705176,1772694634867,-1132.0,0.0002098,2]
[407705177,1772694634877,-500.0,0.00020996,5]
[407705178,1772694634887,-1198.7859184,0.00021,2]
[407705179,1772694634897,-197.86958723,0.00021,2]
[407705180,1772694634907,-1692.0,0.00021022,2]
[407705181,1772694634917,-694.0,0.00021064,2]
[407705182,1772694634927,-500.0,0.0002127,5]
[407705183,1772694634937,-1006.98,0.00021387,2]
[407705184,1772694635097,-1802.0,0.00021437,2]
[407705185,1772694635107,-223.23362151,0.000215,2]
[407705186,1772694635117,-500.0,0.00021544,5]
[407705187,1772694635127,-2351.0,0.00021639,2]
[407705188,1772694635138,-500.0,0.00021818,5]
[407705189,1772694635148,-164.92,0.00022,2]
[407705190,1772694635158,-160.0,0.00022,2]
[407705191,1772694635168,-6639.0818062,0.00022001,2]
[407705192,1772694635178,-500.0,0.00022092,5]
[407705193,1772694635188,-497.01353559,0.000221,2]
[407705194,1772694635198,-1000.0,0.00022197,2]
[407705195,1772694635208,-500.0,0.00022366,5]
[407705196,1772694635218,-5248.47370964,0.00022567,2]
[407705197,1772694635228,-20692.88985887,0.00022582,2]
[407705198,1772694635237,-3624.1649107,0.000226,2]
[407705199,1772694635247,-500.0,0.0002264,5]
[407705200,1772694635257,-526.00900396,0.0002271,2]
[407705201,1772694635267,-1481.3793866,0.00022715,2]
[407705202,1772694635277,-584.88749694,0.000229,2]
[407705203,1772694635287,-2515.57918598,0.000229,2]
[407705204,1772694635297,-500.0,0.00022914,5]
[407705205,1772694635306,-151.0,0.00022915,7]
[407705206,1772694635315,-518188.3562446,0.00022918,2]
[407705207,1772694635326,-217.71312012,0.00023,2]
[407705208,1772694635335,-160.0,0.00023,2]
[407705209,1772694635345,-500.0,0.00023188,5]
[407705210,1772694635355,-791.08455871,0.000232,2]
[407705211,1772694635364,-640.3340267,0.00023462,5]
[407705212,1772694635374,-200.0,0.000235,2]
[407705213,1772694635384,-428.51371254,0.00023671,2]
[407705214,1772694635394,-176.69,0.00023711,2]
[407705215,1772694635404,-3292.0,0.00023727,2]
[407705216,1772694635413,-1006.98,0.00023763,2]
[407705217,1772694635423,-3600.0,0.00024,2]
[407705218,1772694635432,-1241.99719672,0.00024,2]
[407705219,1772694635442,-151.0,0.00024052,7]
[407705220,1772694635452,-115623.4509159,0.00024055,2]
[407705221,1772694635461,-187.0,0.00024144,2]
[407705222,1772694635471,-424.31669747,0.0002421,2]
[407705223,1772694635481,-3717.67466414,0.0002421,2]
[407705224,1772694635492,-25799.0791197,0.00024308,2]
[407705225,1772694635501,-975.30830751,0.00024346,2]
[407705226,1772694635511,-250.0,0.00024624,2]
[407705227,1772694635521,-150.0,0.00024658,2]
[407705228,1772694635536,-1000.0,0.00024663,2]
[407705229,1772694635546,-17015.2068028,0.000249,3]
[407705230,1772694635556,-540.0,0.00025,2]
[407705231,1772694635566,-612.98918462,0.00025,2]
[407705232,1772694635578,-3054.8710962,0.00025,2]
[407705233,1772694635588,-167.89369689,0.00025,2]
[407705234,1772694635597,-1799.31547668,0.00025,2]
[407705235,1772694635608,-21628.88,0.00025142,2]
[407705236,1772694635618,-2288.49423229,0.0002518,2]
[407705237,1772694635627,-5248.47370964,0.00025233,2]
[407705238,1772694635636,-20692.88985887,0.00025263,2]
[407705239,1772694635646,-684.0,0.00025488,2]
[407705240,1772694635656,-150.0,0.0002589,2]
[407705241,1772694635666,-500.0,0.00025929,2]
[407705242,1772694635675,-500.0,0.00025929,2]
[407705243,1772694635685,-500.0,0.00025929,2]
[407705244,1772694635695,-500.0,0.00025929,2]
[407705245,1772694635704,-500.0,0.00025929,2]
[407705246,1772694635714,-500.0,0.00025929,2]
[407705247,1772694635724,-500.0,0.00025929,2]
[407705248,1772694635734,-500.0,0.00025929,2]
[407705249,1772694635744,-603.05428044,0.0002599,2]
[407705250,1772694635753,-217.26247167,0.00026,2]
[407705251,1772694635763,-1041.54,0.00026013,2]
[407705252,1772694635772,-4609.0,0.00026016,2]
[407705253,1772694635782,-1006.98,0.00026139,120]
[407705254,1772694635792,-454.65633138,0.000263,2]
[407705255,1772694635801,-250.0,0.00027,2]
[407705256,1772694635811,-1038.46777082,0.00027,2]
[407705257,1772694635821,-530.0,0.00027,2]
[407705258,1772694635831,-1000.0,0.00027129,2]
[407705259,1772694635840,-150.0,0.00027185,2]
[407705260,1772694635850,-22735.0,0.00027397,10]
[407705261,1772694635860,-18945.83,0.00027397,10]
[407705262,1772694635870,-15788.19,0.00027397,10]
[407705263,1772694635879,-13156.83,0.00027397,10]
[407705264,1772694635888,-305.97,0.000274,7]
[407705265,1772694635898,-428.51371254,0.00027443,2]
[407705266,1772694635908,-552.04549921,0.000275,2]
[407705267,1772694635917,-5248.47370964,0.000279,2]
[407705268,1772694635927,-20692.88985887,0.00027945,2]
[407705269,1772694635937,-160.0,0.00028,2]
[407705270,1772694635946,-485.13,0.000281,7]
[407705271,1772694635956,-1006.98,0.00028516,120]
[407705272,1772694635965,-5653.0,0.00028526,2]
[407705273,1772694635975,-975.30830751,0.00028792,2]
[407705274,1772694635985,-1526.72766708,0.00028999,2]
[407705275,1772694635995,-504.58783339,0.00029,2]
[407705276,1772694636006,-9999.99,0.00029009,2]
[407705277,1772694636017,-1475.58,0.00029009,2]
[407705278,1772694636026,-3195.69,0.00029009,2]
[407705279,1772694636036,-299.99,0.00029009,12]
[407705280,1772694636046,-150.99,0.00029009,2]
[407705281,1772694636056,-9999.99,0.00029009,2]
[407705282,1772694636065,-20522.54,0.00029009,10]
[407705283,1772694636074,-150.99,0.00029009,2]
[407705284,1772694636084,-609.85,0.00029009,2]
[407705285,1772694636093,-6266.07,0.00029009,2]
[407705286,1772694636103,-9999.99,0.00029009,2]
[407705287,1772694636113,-2109.48,0.00029009,2]
[407705288,1772694636123,-1541.29,0.00029009,20]
[407705289,1772694636133,-9999.99,0.00029009,2]
[407705290,1772694636143,-3712.14,0.00029009,2]
[407705291,1772694636153,-1206.09,0.00029009,2]
[407705292,1772694636163,-999.99,0.00029009,2]
[407705293,1772694636173,-6337.89,0.00029009,2]
[407705294,1772694636183,-9999.99,0.00029009,2]
[407705295,1772694636194,-1000.0,0.00029596,2]
[407705296,1772694636203,-8360.86,0.00029639,2]
[407705297,1772694636212,-92234.30137011,0.000298,7]
[407705298,1772694636222,-238.45607153,0.0002999,2]
[407705299,1772694636231,-2000.0,0.0003,3]
[407705300,1772694636241,-320.964499,0.0003,2]
[407705301,1772694636250,-1827.1600903,0.0003,2]
[407705302,1772694636260,-578.91233083,0.0003,4]
[407705303,1772694636270,-163.88401201,0.0003,2]
[407705304,1772694636279,-1079.36101837,0.0003013,2]
[407705305,1772694636288,-637.42038514,0.0003013,2]
[407705306,1772694636297,-202.77930831,0.0003013,2]
[407705307,1772694636306,-216.3,0.00030438,30]
[407705308,1772694636316,-2288.49423229,0.0003046,2]
[407705309,1772694636326,-5248.47370964,0.00030567,2]
[407705310,1772694636335,-20692.88985887,0.00030627,2]
[407705311,1772694636345,-1617.43008731,0.0003084,2]
[407705312,1772694636353,-428.51371254,0.00031214,2]
[407705313,1772694636363,-150.0,0.000315,2]
[407705314,1772694636372,-209.40437684,0.00031836,2]
[407705315,1772694636381,-578.20924308,0.00031836,2]
[407705316,1772694636390,-174.61919141,0.00031836,2]
[407705317,1772694636399,-151.0,0.00031836,2]
[407705318,1772694636409,-262.90206542,0.00031836,2]
[407705319,1772694636418,-209.40437684,0.00031836,2]
[407705320,1772694636427,-693.3919763,0.00031836,2]
[407705321,1772694636437,-693.3919763,0.00031836,2]
[407705322,1772694636447,-151.0,0.00031891,2]
[407705323,1772694636456,-719.04747942,0.00031891,2]
[407705324,1772694636465,-151.0,0.00031946,2]
[407705325,1772694636474,-745.65223616,0.00031946,2]
[407705326,1772694636483,-151.0,0.00032001,2]
[407705327,1772694636492,-773.2413689,0.00032001,2]
[407705328,1772694636502,-151.0,0.00032056,2]
[407705329,1772694636511,-801.85129955,0.00032056,2]
[407705330,1772694636520,-151.0,0.00032111,2]
[407705331,1772694636530,-831.51979763,0.00032111,2]
[407705332,1772694636543,-151.0,0.00032166,2]
[407705333,1772694636552,-862.28603014,0.00032166,2]
[407705334,1772694636561,-151.0,0.00032221,2]
[407705335,1772694636570,-894.19061326,0.00032221,2]
[407705336,1772694636580,-151.0,0.00032276,2]
[407705337,1772694636589,-927.27566595,0.00032276,2]
[407705338,1772694636599,-899.06681649,0.000323,2]
[407705339,1772694636610,-151.0,0.00032331,2]
[407705340,1772694636619,-961.58486559,0.00032331,2]
[407705341,1772694636629,-290.06064528,0.00032384,2]
[407705342,1772694636639,-181.08010149,0.00032384,2]
[407705343,1772694636649,-272.62944185,0.00032384,2]
[407705344,1772694636659,-217.15233878,0.00032384,2]
[407705345,1772694636669,-725.44970816,0.00032384,2]
[407705346,1772694636679,-151.0,0.00032386,2]
[407705347,1772694636688,-997.16350561,0.00032386,2]
[407705348,1772694636698,-151.0,0.00032441,2]
[407705349,1772694636707,-151.0,0.00032496,2]
[407705350,1772694636717,-151.0,0.00032551,2]
[407705351,1772694636726,-151.0,0.00032606,2]
[407705352,1772694636735,-151.0,0.00032661,2]
[407705353,1772694636745,-151.0,0.00032716,2]
[407705354,1772694636755,-4857.32923601,0.000328,2]
[407705355,1772694636765,-1730.60487872,0.0003287,4]
[407705356,1772694636774,-187.78006525,0.00032932,2]
[407705357,1772694636784,-282.71673119,0.00032932,2]
[407705358,1772694636793,-225.18697531,0.00032932,2]
[407705359,1772694636803,-155.69,0.00032945,14]
[407705360,1772694636812,-151.0,0.00032997,14]
[407705361,1772694636822,-154.43805342,0.00033,2]
[407705362,1772694636832,-5334.0,0.00033056,5]
[407705363,1772694636841,-238.48776007,0.000331,2]
[407705364,1772694636850,-5248.47370964,0.00033233,2]
[407705365,1772694636859,-975.30830751,0.00033238,2]
[407705366,1772694636868,-20692.88985887,0.00033308,2]
[407705367,1772694636878,-216.3,0.00033373,30]
[407705368,1772694636887,-194.72792766,0.0003348,2]
[407705369,1772694636896,-378.66218668,0.0003348,2]
[407705370,1772694636906,-1218.27135184,0.000335,2]
[407705371,1772694637041,-201.93286099,0.00034028,2]
[407705372,1772694637051,-1741.20742366,0.0003449,2]
[407705373,1772694637061,-599.60298507,0.00034575,2]
[407705374,1772694637071,-241.69573595,0.00034576,2]
[407705375,1772694637080,-584.88749694,0.00034688,2]
[407705376,1772694637089,-2515.57918596,0.00034688,2]
[407705377,1772694637098,-428.51371254,0.00034986,2]
[407705378,1772694637108,-151.00675306,0.00035,30]
[407705379,1772694637116,-1928.36275444,0.00035,2]
[407705380,1772694637125,-804.37234953,0.00035,2]
[407705381,1772694637134,-176.69,0.00035567,2]
[407705382,1772694637143,-4457.09176409,0.0003561,2]
[407705383,1772694637152,-5000.0,0.0003561,2]
[407705384,1772694637161,-166.18730645,0.00035616,2]
[407705385,1772694637171,-224.72362941,0.00035718,15]
[407705386,1772694637180,-2288.49423229,0.0003574,2]
[407705387,1772694637189,-305.97,0.000358,14]
[407705388,1772694637198,-5248.47370964,0.000359,2]
[407705389,1772694637208,-20692.88985887,0.0003599,2]
[407705390,1772694637217,-733.45232792,0.00036,2]
[407705391,1772694637226,-216.3,0.00036309,30]
[407705392,1772694637235,-634.0,0.00036447,30]
[407705393,1772694637245,-479.0,0.00036447,30]
[407705394,1772694637255,-1620.0526271,0.000368,2]